fUSD/lending_fUSD_20260507
["ID","MTS","AMOUNT","RATE_DAILY","PERIOD"]
[421744587,1778092232000,-250.0,0.00014848,2]
[421744585,1778092232000,-300.0,0.00014848,2]
[421744583,1778092232000,-1568.95456084,0.00014238,2]
[421744579,1778092232000,-1200.0,0.00014237,2]
[421744576,1778092232000,-152.42623429,0.0001359,2]
[421744578,1778092232000,-2080.17592889,0.0001369,2]
[421744577,1778092232000,-2002.7115,0.00013598,2]
[421744601,1778092232000,-506.15936797,0.00016831,2]
[421744575,1778092232000,-500.0,0.00013498,2]
[421744607,1778092232000,-506.15936797,0.00017008,2]
[421744618,1778092232000,-506.15936797,0.00017394,2]
[421744625,1778092232000,-550.0,0.00017409,2]
[421744639,1778092232000,-214.7,0.0001841,2]
[421744641,1778092232000,-543.0,0.00018506,2]
[421744635,1778092232000,-152.0,0.00018133,2]
[421744646,1778092232000,-173.58,0.00019822,2]
[421744647,1778092232000,-193.26,0.00019839,2]
[421744645,1778092232000,-166.66,0.00019534,2]
[421744648,1778092232000,-163.63,0.00019862,2]
[421744637,1778092232000,-152.0,0.00018133,2]
[421744644,1778092232000,-262.82481083,0.00019178,2]
[421744631,1778092232000,-506.15936797,0.00017583,2]
[421744643,1778092232000,-166.66,0.00019132,2]
[421744623,1778092232000,-506.15936797,0.00017409,2]
[421744616,1778092232000,-543.80374613,0.00017382,2]
[421744627,1778092232000,-506.15936797,0.00017488,2]
[421744612,1778092232000,-506.15936797,0.00017036,2]
[421744628,1778092232000,-506.15936797,0.00017573,2]
[421744614,1778092232000,-506.15936797,0.00017206,2]
[421744633,1778092232000,-506.15936797,0.00017612,2]
[421744621,1778092232000,-506.15936797,0.000174,2]
[421744688,1778092233000,-1268.0,0.00023121,2]
[421744676,1778092233000,-1002.61,0.00021918,2]
[421744683,1778092233000,-514.51073399,0.00022868,2]
[421744680,1778092233000,-214.7,0.00022353,2]
[421744681,1778092233000,-2000.0,0.00022656,2]
[421744678,1778092233000,-282.0,0.00022,2]
[421744677,1778092233000,-293.0,0.00022,2]
[421744679,1778092233000,-1000.0,0.00022321,2]
[421744682,1778092233000,-500.0,0.00022722,2]
[421744686,1778092233000,-293.0,0.00023,2]
[421744689,1778092233000,-1221.0,0.00023121,2]
[421744707,1778092233000,-2000.0,0.00025173,2]
[421744687,1778092233000,-282.0,0.00023,2]
[421744693,1778092233000,-282.0,0.00024,2]
[421744696,1778092233000,-1118.26,0.00024174,2]
[421744690,1778092233000,-3625.0,0.00023121,2]
[421744695,1778092233000,-804.4,0.00024116,2]
[421744692,1778092233000,-293.0,0.00024,2]
[421744694,1778092233000,-5000.0,0.00024093,2]
[421744698,1778092233000,-670.74706184,0.00024174,2]
[421744697,1778092233000,-3282.37293816,0.00024174,2]
[421744684,1778092233000,-1660.39,0.00022979,2]
[421744701,1778092233000,-150.0,0.00024658,2]
[421744691,1778092233000,-925.0,0.00023121,2]
[421744685,1778092233000,-213.115178,0.00023,2]
[421744662,1778092233000,-500.0,0.00020438,2]
[421744674,1778092233000,-29204.9627,0.0002179,2]
[421744649,1778092233000,-210.92798276,0.000199,2]
[421744651,1778092233000,-2549.3183,0.00019918,2]
[421744650,1778092233000,-152.37,0.00019909,2]
[421744653,1778092233000,-150.0,0.0002,2]
[421744652,1778092233000,-166.66,0.00019937,2]
[421744656,1778092233000,-282.0,0.0002,2]
[421744654,1778092233000,-293.0,0.0002,2]
[421744655,1778092233000,-154.0,0.0002,2]
[421744657,1778092233000,-150.0,0.00020002,2]
[421744659,1778092233000,-2000.0,0.00020139,2]
[421744660,1778092233000,-166.66,0.0002034,2]
[421744658,1778092233000,-197.268749,0.00020004,2]
[421744661,1778092233000,-214.7,0.00020381,2]
[421744663,1778092233000,-160.0,0.00020611,2]
[421744664,1778092233000,-214.60306816,0.00020611,2]
[421744668,1778092233000,-282.0,0.00021,2]
[421744667,1778092233000,-166.39465111,0.00021,2]
[421744699,1778092233000,-214.7,0.00024324,2]
[421744669,1778092233000,-2488.9132234,0.00021114,2]
[421744671,1778092233000,-166.66,0.00021146,2]
[421744670,1778092233000,-176.5484316,0.00021114,2]
[421744673,1778092233000,-500.0,0.00021773,2]
[421744666,1778092233000,-293.0,0.00021,2]
[421744665,1778092233000,-166.66,0.00020743,2]
[421744672,1778092233000,-1115.77,0.00021273,2]
[421744675,1778092233000,-1000.0,0.0002179,2]
[421744704,1778092233000,-804.4,0.00024719,2]
[421744700,1778092233000,-161.81,0.00024534,2]
[421744703,1778092233000,-1000.0,0.00024658,2]
[421744735,1778092233000,-500.0,0.00025824,2]
[421744736,1778092233000,-500.0,0.00025824,2]
[421744739,1778092233000,-500.0,0.00025824,2]
[421744740,1778092233000,-500.0,0.00025824,2]
[421744737,1778092233000,-500.0,0.00025824,2]
[421744738,1778092233000,-500.0,0.00025824,2]
[421744742,1778092233000,-500.0,0.00025824,2]
[421744741,1778092233000,-500.0,0.00025824,2]
[421744744,1778092233000,-500.0,0.00025824,2]
[421744748,1778092233000,-500.0,0.00025824,2]
[421744747,1778092233000,-500.0,0.00025824,2]
[421744706,1778092233000,-298.0,0.00025,2]
[421744745,1778092233000,-500.0,0.00025824,2]
[421744743,1778092233000,-500.0,0.00025824,2]
[421744746,1778092233000,-500.0,0.00025824,2]
[421744750,1778092233000,-500.0,0.00025824,2]
[421744751,1778092233000,-500.0,0.00025824,2]
[421744753,1778092233000,-500.0,0.00025824,2]
[421744755,1778092233000,-500.0,0.00025824,2]
[421744752,1778092233000,-500.0,0.00025824,2]
[421744754,1778092233000,-500.0,0.00025824,2]
[421744757,1778092233000,-500.0,0.00025824,2]
[421744756,1778092233000,-260.96391466,0.00025824,2]
[421744758,1778092233000,-500.0,0.00025824,2]
[421744759,1778092233000,-500.0,0.00025824,2]
[421744734,1778092233000,-500.0,0.00025824,2]
[421744733,1778092233000,-500.0,0.00025824,2]
[421744749,1778092233000,-500.0,0.00025824,2]
[421744729,1778092233000,-500.0,0.00025824,2]
[421744732,1778092233000,-500.0,0.00025824,2]
[421744702,1778092233000,-306.54,0.00024658,2]
[421744705,1778092233000,-306.0,0.00025,2]
[421744718,1778092233000,-191.45497406,0.00025822,2]
[421744708,1778092233000,-250.0,0.00025205,2]
[421744715,1778092233000,-10.35861726,0.00025786,2]
[421744717,1778092233000,-2500.0,0.000258,2]
[421744709,1778092233000,-500.0,0.00025275,2]
[421744712,1778092233000,-1115.77,0.00025786,2]
[421744713,1778092233000,-1118.26,0.00025786,2]
[421744710,1778092233000,-804.4,0.00025322,2]
[421744711,1778092233000,-11926.50478412,0.00025724,2]
[421744716,1778092233000,-2000.0,0.000258,2]
[421744721,1778092233000,-500.0,0.00025822,2]
[421744727,1778092233000,-500.0,0.00025824,2]
[421744714,1778092233000,-3942.76138274,0.00025786,2]
[421744728,1778092233000,-500.0,0.00025824,2]
[421744726,1778092233000,-500.0,0.00025824,2]
[421744724,1778092233000,-500.0,0.00025824,2]
[421744722,1778092233000,-500.0,0.00025822,2]
[421744725,1778092233000,-500.0,0.00025824,2]
[421744720,1778092233000,-500.0,0.00025822,2]
[421744731,1778092233000,-500.0,0.00025824,2]
[421744730,1778092233000,-500.0,0.00025824,2]
[421744719,1778092233000,-500.0,0.00025822,2]
[421744723,1778092233000,-500.0,0.00025824,2]
[421744776,1778092234000,-500.0,0.00025824,2]
[421744777,1778092234000,-500.0,0.00025824,2]
[421744774,1778092234000,-500.0,0.00025824,2]
[421744785,1778092234000,-500.0,0.00025824,2]
[421744783,1778092234000,-500.0,0.00025824,2]
[421744779,1778092234000,-500.0,0.00025824,2]
[421744784,1778092234000,-500.0,0.00025824,2]
[421744781,1778092234000,-500.0,0.00025824,2]
[421744782,1778092234000,-500.0,0.00025824,2]
[421744780,1778092234000,-500.0,0.00025824,2]
[421744775,1778092234000,-500.0,0.00025824,2]
[421744778,1778092234000,-500.0,0.00025824,2]
[421744772,1778092234000,-500.0,0.00025824,2]
[421744761,1778092234000,-500.0,0.00025824,2]
[421744764,1778092234000,-500.0,0.00025824,2]
[421744766,1778092234000,-500.0,0.00025824,2]
[421744770,1778092234000,-500.0,0.00025824,2]
[421744786,1778092234000,-500.0,0.00025824,2]
[421744771,1778092234000,-500.0,0.00025824,2]
[421744765,1778092234000,-500.0,0.00025824,2]
[421744767,1778092234000,-500.0,0.00025824,2]
[421744769,1778092234000,-500.0,0.00025824,2]
[421744768,1778092234000,-500.0,0.00025824,2]
[421744763,1778092234000,-500.0,0.00025824,2]
[421744762,1778092234000,-500.0,0.00025824,2]
[421744760,1778092234000,-500.0,0.00025824,2]
[421744773,1778092234000,-500.0,0.00025824,2]
[421744787,1778092234000,-500.0,0.00025824,2]
[421744807,1778092234000,-150.0,0.00025873,2]
[421744790,1778092234000,-500.0,0.00025824,2]
[421744792,1778092234000,-500.0,0.00025824,2]
[421744817,1778092234000,-471.16,0.000259,2]
[421744816,1778092234000,-5722.88516066,0.000259,2]
[421744814,1778092234000,-14362.70404852,0.000259,2]
[421744813,1778092234000,-7136.19626575,0.000259,2]
[421744812,1778092234000,-500.0,0.00025873,2]
[421744806,1778092234000,-500.0,0.00025824,2]
[421744804,1778092234000,-500.0,0.00025824,2]
[421744808,1778092234000,-501.06970518,0.00025873,2]
[421744801,1778092234000,-500.0,0.00025824,2]
[421744809,1778092234000,-406.11739145,0.00025873,2]
[421744810,1778092234000,-500.0,0.00025873,2]
[421744802,1778092234000,-500.0,0.00025824,2]
[421744815,1778092234000,-370.50525017,0.000259,2]
[421744805,1778092234000,-300.0,0.00025824,2]
[421744803,1778092234000,-500.0,0.00025824,2]
[421744788,1778092234000,-500.0,0.00025824,2]
[421744797,1778092234000,-500.0,0.00025824,2]
[421744791,1778092234000,-500.0,0.00025824,2]
[421744795,1778092234000,-500.0,0.00025824,2]
[421744793,1778092234000,-500.0,0.00025824,2]
[421744798,1778092234000,-500.0,0.00025824,2]
[421744789,1778092234000,-500.0,0.00025824,2]
[421744794,1778092234000,-525.0,0.00025824,2]
[421744799,1778092234000,-500.0,0.00025824,2]
[421744800,1778092234000,-500.0,0.00025824,2]
[421744811,1778092234000,-500.0,0.00025873,2]
[421744796,1778092234000,-500.0,0.00025824,2]
[421744827,1778092238000,-133.48165158,0.000259,2]
[421744826,1778092238000,-13970.5024344,0.000259,2]
[421744825,1778092238000,-204.5796,0.00013498,2]
[421744847,1778092240000,-1000.0,0.00026421,2]
[421744846,1778092240000,-250.0,0.00026421,2]
[421744844,1778092240000,-280.54,0.00026247,2]
[421744845,1778092240000,-214.7,0.00026296,2]
[421744840,1778092240000,-522.316,0.00026121,2]
[421744842,1778092240000,-3625.0,0.00026121,2]
[421744843,1778092240000,-925.0,0.00026121,2]
[421744835,1778092240000,-500.0,0.00025973,2]
[421744839,1778092240000,-214.60306816,0.00026,10]
[421744836,1778092240000,-186.21316937,0.00025999,2]
[421744838,1778092240000,-27245.69333692,0.00026,10]
[421744833,1778092240000,-2796.80946535,0.000259,2]
[421744834,1778092240000,-804.4,0.00025925,2]
[421744832,1778092240000,-65811.27688892,0.000259,2]
[421744848,1778092240000,-1000.0,0.00026421,2]
[421744841,1778092240000,-1221.0,0.00026121,2]
[421744850,1778092240000,-1000.0,0.00026521,2]
[421744837,1778092240000,-500.0,0.00025999,2]
[421744849,1778092240000,-1142.15755731,0.00026421,2]
[421744851,1778092240000,-804.4,0.00026528,2]
[421744866,1778092240000,-500.0,0.00027123,2]
[421744867,1778092240000,-500.0,0.00027123,2]
[421744865,1778092240000,-500.0,0.00027123,2]
[421744861,1778092240000,-500.0,0.00027123,2]
[421744855,1778092240000,-891.2748952,0.00026968,2]
[421744856,1778092240000,-1500.0,0.00027068,2]
[421744857,1778092240000,-178.94,0.00027074,2]
[421744859,1778092240000,-500.0,0.00027123,2]
[421744858,1778092240000,-195.26,0.00027074,2]
[421744854,1778092240000,-1500.0,0.00026968,2]
[421744852,1778092240000,-218.07,0.00026905,2]
[421744864,1778092240000,-500.0,0.00027123,2]
[421744863,1778092240000,-500.0,0.00027123,2]
[421744862,1778092240000,-500.0,0.00027123,2]
[421744860,1778092240000,-500.0,0.00027123,2]
[421744853,1778092240000,-350.0,0.00026968,2]
[421744906,1778092241000,-500.0,0.00027123,2]
[421744907,1778092241000,-556.0,0.00027123,2]
[421744905,1778092241000,-500.0,0.00027123,2]
[421744904,1778092241000,-556.0,0.00027123,2]
[421744898,1778092241000,-500.0,0.00027123,2]
[421744903,1778092241000,-500.0,0.00027123,2]
[421744914,1778092241000,-556.0,0.00027123,2]
[421744899,1778092241000,-500.0,0.00027123,2]
[421744909,1778092241000,-500.0,0.00027123,2]
[421744895,1778092241000,-500.0,0.00027123,2]
[421744915,1778092241000,-500.0,0.00027123,2]
[421744913,1778092241000,-500.0,0.00027123,2]
[421744916,1778092241000,-500.0,0.00027123,2]
[421744908,1778092241000,-500.0,0.00027123,2]
[421744910,1778092241000,-500.0,0.00027123,2]
[421744912,1778092241000,-500.0,0.00027123,2]
[421744917,1778092241000,-556.0,0.00027123,2]
[421744927,1778092241000,-500.0,0.00027123,2]
[421744918,1778092241000,-500.0,0.00027123,2]
[421744919,1778092241000,-500.0,0.00027123,2]
[421744894,1778092241000,-508.0372081,0.00027123,2]
[421744923,1778092241000,-556.0,0.00027123,2]
[421744924,1778092241000,-500.0,0.00027123,2]
[421744922,1778092241000,-500.0,0.00027123,2]
[421744920,1778092241000,-500.0,0.00027123,2]
[421744926,1778092241000,-500.0,0.00027123,2]
[421744911,1778092241000,-556.0,0.00027123,2]
[421744897,1778092241000,-556.0,0.00027123,2]
[421744884,1778092241000,-556.0,0.00027123,2]
[421744892,1778092241000,-556.0,0.00027123,2]
[421744921,1778092241000,-556.0,0.00027123,2]
[421744869,1778092241000,-500.0,0.00027123,2]
[421744868,1778092241000,-526.04399101,0.00027123,2]
[421744871,1778092241000,-500.0,0.00027123,2]
[421744872,1778092241000,-500.0,0.00027123,2]
[421744870,1778092241000,-509.972563,0.00027123,2]
[421744875,1778092241000,-500.0,0.00027123,2]
[421744874,1778092241000,-500.0,0.00027123,2]
[421744873,1778092241000,-500.0,0.00027123,2]
[421744877,1778092241000,-556.0,0.00027123,2]
[421744885,1778092241000,-500.0,0.00027123,2]
[421744879,1778092241000,-500.0,0.00027123,2]
[421744900,1778092241000,-150.0,0.00027123,2]
[421744878,1778092241000,-556.0,0.00027123,2]
[421744881,1778092241000,-500.0,0.00027123,2]
[421744882,1778092241000,-556.0,0.00027123,2]
[421744889,1778092241000,-556.0,0.00027123,2]
[421744880,1778092241000,-556.0,0.00027123,2]
[421744886,1778092241000,-500.0,0.00027123,2]
[421744887,1778092241000,-500.0,0.00027123,2]
[421744883,1778092241000,-500.0,0.00027123,2]
[421744891,1778092241000,-500.0,0.00027123,2]
[421744902,1778092241000,-500.0,0.00027123,2]
[421744901,1778092241000,-556.0,0.00027123,2]
[421744893,1778092241000,-500.0,0.00027123,2]
[421744890,1778092241000,-500.0,0.00027123,2]
[421744876,1778092241000,-379.10052604,0.00027123,2]
[421744925,1778092241000,-500.0,0.00027123,2]
[421744930,1778092241000,-500.0,0.00027123,2]
[421744928,1778092241000,-500.0,0.00027123,2]
[421744954,1778092241000,-151.53299608,0.00027123,2]
[421744956,1778092241000,-500.0,0.00027123,2]
[421744973,1778092241000,-166.33,0.00027267,2]
[421744964,1778092241000,-150.0,0.00027123,2]
[421744963,1778092241000,-150.0,0.00027123,2]
[421744969,1778092241000,-488.54740067,0.00027129,2]
[421744967,1778092241000,-560.64148746,0.00027123,2]
[421744966,1778092241000,-556.0,0.00027123,2]
[421744965,1778092241000,-224.74966561,0.00027123,2]
[421744972,1778092241000,-171.78448523,0.00027129,2]
[421744970,1778092241000,-538.12482486,0.00027129,2]
[421744986,1778092241000,-500.0,0.00027425,2]
[421744955,1778092241000,-500.0,0.00027123,2]
[421744968,1778092241000,-500.0,0.00027129,2]
[421744985,1778092241000,-305.1,0.000274,2]
[421744978,1778092241000,-1500.0,0.00027397,2]
[421744976,1778092241000,-500.0,0.00027395,2]
[421744977,1778092241000,-177.69814969,0.00027397,2]
[421744974,1778092241000,-11926.50478412,0.00027288,2]
[421744980,1778092241000,-300.0,0.00027397,2]
[421744981,1778092241000,-1462.65,0.00027397,2]
[421744982,1778092241000,-12915.13,0.00027397,10]
[421744979,1778092241000,-306.54,0.00027397,2]
[421744984,1778092241000,-305.1,0.000274,2]
[421744983,1778092241000,-10762.61,0.00027397,10]
[421744939,1778092241000,-500.0,0.00027123,2]
[421744975,1778092241000,-500.0,0.00027395,2]
[421744957,1778092241000,-311.27862817,0.00027123,2]
[421744971,1778092241000,-245.40640748,0.00027129,2]
[421744962,1778092241000,-150.0,0.00027123,2]
[421744953,1778092241000,-500.0,0.00027123,2]
[421744929,1778092241000,-556.0,0.00027123,2]
[421744932,1778092241000,-500.0,0.00027123,2]
[421744933,1778092241000,-500.0,0.00027123,2]
[421744935,1778092241000,-500.0,0.00027123,2]
[421744938,1778092241000,-500.0,0.00027123,2]
[421744934,1778092241000,-500.0,0.00027123,2]
[421744937,1778092241000,-500.0,0.00027123,2]
[421744936,1778092241000,-556.0,0.00027123,2]
[421744940,1778092241000,-500.0,0.00027123,2]
[421744943,1778092241000,-150.0,0.00027123,2]
[421744944,1778092241000,-500.0,0.00027123,2]
[421744942,1778092241000,-500.0,0.00027123,2]
[421744931,1778092241000,-500.0,0.00027123,2]
[421744941,1778092241000,-500.0,0.00027123,2]
[421744952,1778092241000,-500.0,0.00027123,2]
[421744945,1778092241000,-493.40619236,0.00027123,2]
[421744959,1778092241000,-556.0,0.00027123,2]
[421744960,1778092241000,-556.0,0.00027123,2]
[421744951,1778092241000,-500.0,0.00027123,2]
[421744961,1778092241000,-150.0,0.00027123,2]
[421744958,1778092241000,-556.0,0.00027123,2]
[421744948,1778092241000,-500.0,0.00027123,2]
[421744946,1778092241000,-150.0,0.00027123,2]
[421744949,1778092241000,-556.0,0.00027123,2]
[421744947,1778092241000,-500.0,0.00027123,2]
[421744950,1778092241000,-163.83485364,0.00027123,2]
[421745027,1778092242000,-411.0,0.0002785,2]
[421745026,1778092242000,-400.0,0.00027847,2]
[421745029,1778092242000,-403.0,0.00027857,2]
[421745035,1778092242000,-394.0,0.0002789,2]
[421745030,1778092242000,-403.0,0.00027872,2]
[421745011,1778092242000,-400.0,0.00027798,2]
[421745036,1778092242000,-403.0,0.00027892,2]
[421745019,1778092242000,-403.0,0.00027827,2]
[421745017,1778092242000,-394.0,0.00027817,2]
[421745020,1778092242000,-411.0,0.00027831,2]
[421745032,1778092242000,-394.0,0.00027873,2]
[421745025,1778092242000,-411.0,0.00027847,2]
[421745031,1778092242000,-403.0,0.00027873,2]
[421745041,1778092242000,-403.0,0.0002791,2]
[421745028,1778092242000,-394.0,0.00027853,2]
[421745033,1778092242000,-403.0,0.00027874,2]
[421745034,1778092242000,-411.0,0.00027884,2]
[421745037,1778092242000,-2796.80946535,0.000279,2]
[421745049,1778092242000,-394.0,0.00027931,2]
[421745048,1778092242000,-394.0,0.00027931,2]
[421745038,1778092242000,-394.0,0.00027903,2]
[421745040,1778092242000,-393.0,0.00027907,2]
[421745042,1778092242000,-411.0,0.00027914,2]
[421745044,1778092242000,-411.0,0.00027915,2]
[421745043,1778092242000,-403.0,0.00027914,2]
[421745047,1778092242000,-403.0,0.00027927,2]
[421745039,1778092242000,-403.0,0.00027904,2]
[421745024,1778092242000,-181.0,0.00027843,2]
[421745021,1778092242000,-394.0,0.00027833,2]
[421744996,1778092242000,-400.0,0.00027735,2]
[421745015,1778092242000,-394.0,0.00027811,2]
[421745045,1778092242000,-400.0,0.00027915,2]
[421744987,1778092242000,-456.79,0.00027516,5]
[421744989,1778092242000,-2000.0,0.00027616,5]
[421744988,1778092242000,-1003.88575088,0.00027516,5]
[421744990,1778092242000,-30196.7272402,0.00027642,2]
[421744991,1778092242000,-250.0,0.00014,2]
[421744995,1778092242000,-403.0,0.0002773,2]
[421744994,1778092242000,-259.71360811,0.00027729,2]
[421744992,1778092242000,-1638.7954598,0.00027642,2]
[421744993,1778092242000,-2000.0,0.00027691,2]
[421745007,1778092242000,-411.0,0.00027789,2]
[421745009,1778092242000,-183.0,0.00027795,2]
[421744997,1778092242000,-400.0,0.00027735,2]
[421745008,1778092242000,-400.0,0.00027791,2]
[421744998,1778092242000,-393.0,0.00027745,2]
[421744999,1778092242000,-394.0,0.00027747,2]
[421745000,1778092242000,-394.0,0.0002775,2]
[421745004,1778092242000,-411.0,0.00027785,2]
[421745005,1778092242000,-411.0,0.00027788,2]
[421745001,1778092242000,-411.0,0.00027754,2]
[421745006,1778092242000,-400.0,0.00027788,2]
[421745003,1778092242000,-393.0,0.00027768,2]
[421745002,1778092242000,-393.0,0.00027767,2]
[421745010,1778092242000,-360.0,0.00027795,2]
[421745012,1778092242000,-1035.92986597,0.000278,7]
[421745023,1778092242000,-367.39786663,0.00027842,2]
[421745014,1778092242000,-458.0,0.00027804,2]
[421745016,1778092242000,-394.0,0.00027813,2]
[421745013,1778092242000,-403.0,0.00027801,2]
[421745018,1778092242000,-305.1,0.00027817,2]
[421745046,1778092242000,-393.0,0.00027925,2]
[421745022,1778092242000,-403.0,0.00027836,2]
[421745061,1778092242000,-393.0,0.00027965,2]
[421745083,1778092242000,-191.26,0.00028319,2]
[421745082,1778092242000,-214.7,0.00028267,2]
[421745085,1778092242000,-286.89,0.0002837,2]
[421745084,1778092242000,-286.89,0.00028356,2]
[421745089,1778092242000,-287.16,0.00028432,2]
[421745090,1778092242000,-286.89,0.00028432,2]
[421745099,1778092242000,-925.0,0.00029121,2]
[421745093,1778092242000,-430.76,0.00028544,2]
[421745098,1778092242000,-3625.0,0.00029121,2]
[421745092,1778092242000,-430.76,0.00028511,2]
[421745100,1778092242000,-200.0,0.00029135,2]
[421745091,1778092242000,-430.76,0.00028496,2]
[421745094,1778092242000,-11926.50478412,0.00028852,2]
[421745087,1778092242000,-287.17,0.00028432,2]
[421745097,1778092242000,-1221.0,0.00029121,2]
[421745101,1778092242000,-200.0,0.00029135,2]
[421745112,1778092242000,-772.91116109,0.00029841,15]
[421745105,1778092242000,-200.0,0.0002922,2]
[421745104,1778092242000,-200.0,0.0002922,2]
[421745102,1778092242000,-150.0,0.00029135,30]
[421745103,1778092242000,-200.0,0.0002922,2]
[421745108,1778092242000,-303.6361363,0.0002922,2]
[421745110,1778092242000,-166.33,0.00029517,2]
[421745109,1778092242000,-200.0,0.00029426,2]
[421745106,1778092242000,-200.0,0.0002922,2]
[421745111,1778092242000,-150.0,0.00029534,2]
[421745107,1778092242000,-200.0,0.0002922,2]
[421745051,1778092242000,-403.0,0.00027943,2]
[421745095,1778092242000,-151.0,0.00028935,2]
[421745080,1778092242000,-2488.9132234,0.00028206,2]
[421745096,1778092242000,-215.54783623,0.00028935,2]
[421745086,1778092242000,-166.33,0.00028392,2]
[421745088,1778092242000,-287.17,0.00028432,2]
[421745062,1778092242000,-403.0,0.00027967,2]
[421745063,1778092242000,-400.0,0.00027967,2]
[421745052,1778092242000,-403.0,0.00027946,2]
[421745050,1778092242000,-400.0,0.00027931,2]
[421745053,1778092242000,-268.25259093,0.00027946,2]
[421745055,1778092242000,-393.0,0.00027948,2]
[421745054,1778092242000,-394.0,0.00027947,2]
[421745056,1778092242000,-394.0,0.0002795,2]
[421745060,1778092242000,-400.0,0.00027962,2]
[421745058,1778092242000,-394.0,0.00027951,2]
[421745059,1778092242000,-459.18762888,0.00027953,2]
[421745064,1778092242000,-411.0,0.00027976,2]
[421745068,1778092242000,-813.956106,0.00028,2]
[421745057,1778092242000,-403.0,0.00027951,2]
[421745067,1778092242000,-394.0,0.0002799,2]
[421745081,1778092242000,-191.26,0.00028263,2]
[421745066,1778092242000,-393.0,0.00027981,2]
[421745077,1778092242000,-300.0,0.000281,10]
[421745079,1778092242000,-191.25,0.00028166,2]
[421745078,1778092242000,-180.45515395,0.00028164,5]
[421745076,1778092242000,-688.0,0.00028004,5]
[421745071,1778092242000,-403.0,0.00028,2]
[421745075,1778092242000,-200.0,0.00028003,2]
[421745073,1778092242000,-200.0,0.00028,10]
[421745072,1778092242000,-214.60306816,0.00028,10]
[421745069,1778092242000,-160.0,0.00028,2]
[421745070,1778092242000,-643.0,0.00028,2]
[421745065,1778092242000,-403.0,0.0002798,2]
[421745074,1778092242000,-193.05,0.00028,2]
[421745134,1778092243000,-500.0,0.00030741,7]
[421745136,1778092243000,-500.0,0.00030741,120]
[421745132,1778092243000,-509.05344199,0.00030741,120]
[421745131,1778092243000,-500.0,0.00030741,2]
[421745133,1778092243000,-596.86,0.00030741,120]
[421745130,1778092243000,-502.48871123,0.00030741,120]
[421745135,1778092243000,-174.90454226,0.00030741,120]
[421745151,1778092243000,-155.0,0.00031203,30]
[421745142,1778092243000,-154.0,0.00031203,30]
[421745140,1778092243000,-150.0,0.00031011,2]
[421745143,1778092243000,-156.0,0.00031203,30]
[421745148,1778092243000,-154.0,0.00031203,30]
[421745149,1778092243000,-156.0,0.00031203,30]
[421745129,1778092243000,-500.0,0.00030741,120]
[421745153,1778092243000,-500.0,0.00031438,7]
[421745139,1778092243000,-173.58,0.00030918,120]
[421745128,1778092243000,-500.0,0.00030741,120]
[421745124,1778092243000,-166.33,0.00030642,2]